bitfinex/quotes_ETHUSD_20260209
["timestamp","ask_amount","ask_price","bid_price","bid_amount"]
[1770645991420,1.23909595,2017.6,2017.4,0.001]
[1770645991722,1.23909595,2017.6,2016.6,5.96884661]
[1770645991926,1.23909595,2017.6,2017.2,0.001]
[1770645992130,1.23906365,2017.7,2017.2,0.001]
[1770645992999,1.31258585,2017.7,2017.2,0.001]
[1770645993199,1.23906365,2017.7,2017.2,0.001]
[1770645993401,4.95578222,2017.9,2017.2,0.001]
[1770645993621,8.41678222,2017.9,2017.2,0.001]
[1770645994000,0.0735222,2017.7,2017.2,0.001]
[1770645994200,8.41678222,2017.9,2017.2,0.001]
[1770645994404,0.0735222,2017.7,2017.2,0.001]
[1770645994728,8.41678222,2017.9,2017.2,0.001]
[1770645995229,1.23869666,2018.3,2017.2,5.96984661]
[1770645995527,3.462,2018.2,2017.2,5.96984661]
[1770645995940,3.462,2018.2,2017.4,5.96884661]
[1770645996905,3.462,2018.2,2017.2,0.001]
[1770645997106,4.70074775,2018.2,2017.4,1.23921879]
[1770645997628,4.77426995,2018.2,2017.4,1.23921879]
[1770645997831,4.77426995,2018.2,2017.3,1.23926995]
[1770645998526,4.77426995,2018.2,2017.3,1.23927199]
[1770645998831,4.77426995,2018.2,2017.2,1.2402853]
[1770645999028,4.77426995,2018.2,2017.3,1.23927987]
[1770645999525,4.70074775,2018.2,2017.2,5.96984661]
[1770645999905,4.77426995,2018.2,2017.2,5.96984661]
[1770646000734,4.77426995,2018.2,2017.2,0.001]
[1770646001110,2.92136191,2018.6,2017.4,5.96884661]
[1770646001316,9.52146094,2018.5,2017.5,1.23915737]
[1770646001524,8.48982193,2018.5,2017.5,1.23915737]
[1770646001709,4.70054347,2018.5,2017.5,7.20800398]
[1770646002034,1.23854347,2018.5,2017.5,7.20800398]
[1770646002804,4.70052549,2018.6,2017.5,7.20800398]
[1770646003200,0.002,2018.9,2017.7,5.96884661]
[1770646003437,0.002,2019.1,2018.4,5.96884661]
[1770646003733,0.002,2019.1,2018.7,11.81961661]
[1770646003937,0.002,2019.1,2018.7,5.96884661]
[1770646004328,0.002,2019.1,2018.5,5.96884661]
[1770646004502,0.002,2019.1,2018.6,6.925322]
[1770646004706,0.002,2019.1,2018.7,5.96884661]
[1770646005335,0.002,2019.1,2018.8,7.25288106]
[1770646005832,0.002,2019.1,2018.8,1.23835942]
[1770646006036,0.0735222,2019.0,2018.0,6.01452164]
[1770646006222,0.0735222,2018.7,2017.9,1.23886918]
[1770646006413,0.0735222,2019.0,2018.2,1.23867919]
[1770646006608,0.0735222,2019.0,2017.6,6.01452164]
[1770646006609,0.0735222,2018.7,2017.6,6.01452164]
[1770646006806,0.0735222,2018.7,2017.4,0.001]
[1770646006807,0.0735222,2018.7,2017.8,1.23896974]
[1770646007109,0.0735222,2018.1,2017.4,0.001]
[1770646007440,1.23848211,2018.6,2017.4,0.001]
[1770646007609,3.461,2018.5,2017.4,0.001]
[1770646007804,3.461,2018.5,2017.4,6.01552164]
[1770646008206,1.31200431,2018.6,2017.4,6.01552164]
[1770646008207,1.23823675,2019.0,2017.6,6.01452164]
[1770646008436,1.02993451,2018.9,2017.6,6.01452164]
[1770646008605,1.31175895,2019.0,2017.6,6.01452164]
[1770646008807,1.03002403,2018.9,2017.6,6.01452164]
[1770646009126,1.31175895,2019.0,2017.6,6.01452164]
[1770646009326,1.03042596,2018.9,2017.6,6.01452164]
[1770646009642,1.31175895,2019.0,2017.8,6.01452164]
[1770646009824,1.03000672,2018.9,2017.8,6.01452164]
[1770646010024,1.31175895,2019.0,2017.8,6.01452164]
[1770646010227,1.03000929,2018.9,2017.8,6.01452164]
[1770646010455,1.31175895,2019.0,2017.8,6.01452164]
[1770646010617,1.03041655,2018.9,2017.8,6.01452164]
[1770646010951,0.0735222,2018.7,2017.8,6.01452164]
[1770646011444,1.31175895,2019.0,2017.8,6.01452164]
[1770646011613,1.03116888,2018.9,2017.9,1.23891173]
[1770646011812,1.03116888,2018.8,2017.9,1.23891173]
[1770646012009,0.0735222,2018.7,2017.7,1.23899184]
[1770646012250,1.03136579,2018.6,2017.8,1.23895648]
[1770646012511,0.0735222,2018.7,2017.8,1.23895648]
[1770646012707,1.03133462,2018.6,2017.8,1.23895648]
[1770646012957,8.58243388,2019.0,2017.8,1.23895648]
[1770646013242,0.0735222,2018.7,2017.8,1.23895648]
[1770646013612,1.31175895,2019.0,2017.5,4.95589255]
[1770646013817,1.0315106,2018.9,2017.6,6.01452164]
[1770646014012,1.0315106,2018.8,2017.6,6.01452164]
[1770646014346,1.10498955,2018.7,2017.6,6.01452164]
[1770646014542,0.0735222,2018.7,2017.6,6.01452164]
[1770646014715,1.31175895,2019.0,2017.6,6.01452164]
[1770646014911,1.03146789,2018.9,2017.6,6.01452164]
[1770646015210,1.03146789,2018.8,2017.6,6.01452164]
[1770646015410,0.0735222,2018.7,2017.6,6.01452164]
[1770646015617,1.23848211,2018.6,2017.7,1.23903454]
[1770646015910,0.0735222,2019.0,2017.7,7.25355618]
[1770646015911,1.23823675,2019.0,2017.7,7.25355618]
[1770646016126,1.23823675,2019.0,2017.9,6.01452164]
[1770646016530,1.31175895,2019.0,2017.9,6.01452164]
[1770646016842,0.0735222,2018.7,2017.7,1.23903454]
[1770646017629,1.23823675,2019.0,2017.9,7.25343337]
[1770646017855,0.0735222,2018.7,2017.9,1.23891173]
[1770646018049,1.31175895,2019.0,2018.0,0.001]
[1770646018360,0.002,2018.8,2018.0,0.001]
[1770646018656,0.0735222,2018.7,2018.0,0.001]
[1770646019075,0.0735222,2018.4,2017.1,6.01452164]
[1770646019365,3.462,2018.3,2017.2,4.95833175]
[1770646019532,3.462,2018.3,2017.5,1.23911215]
[1770646019730,4.70071473,2018.3,2017.4,0.001]
[1770646020052,4.70071473,2018.3,2017.4,6.01552164]
[1770646020862,1.0312913,2018.2,2017.4,0.001]
[1770646021044,4.70071473,2018.3,2017.4,0.001]
[1770646021760,0.002,2018.8,2017.6,6.01452164]
[1770646021947,1.24036071,2018.8,2017.8,6.01452164]
[1770646022362,0.002,2018.8,2017.8,6.01452164]
[1770646022534,0.002,2018.8,2018.0,6.01452164]
[1770646022930,0.002,2018.8,2018.3,11.55485364]
[1770646023435,0.002,2018.8,2018.4,6.01452164]
[1770646023631,0.002,2018.8,2018.0,1.23885034]
[1770646023836,0.002,2018.8,2018.0,7.25337198]
[1770646024030,0.002,2018.8,2018.0,6.01452164]
[1770646024248,0.002,2018.8,2017.9,1.23888566]
[1770646024447,0.002,2018.8,2017.9,7.2534073]
[1770646024645,0.002,2018.8,2018.1,6.01452164]
[1770646025737,0.002,2018.8,2017.9,9.30442664]
[1770646025952,0.002,2018.8,2017.9,6.01452164]
[1770646027941,0.002,2018.8,2018.0,7.25337198]
[1770646028664,0.002,2018.8,2018.4,6.01452164]
[1770646029178,0.002,2018.8,2018.2,6.01452164]
[1770646029476,0.002,2019.0,2018.4,6.01452164]
[1770646030150,0.002,2019.0,2018.5,1.23854347]
[1770646030553,0.002,2019.0,2017.1,4.95759747]
[1770646030554,0.0735222,2018.6,2017.1,4.95759747]
[1770646030757,1.03177225,2018.5,2018.0,1.2388278]
[1770646030952,1.75634064,2018.9,2017.7,1.23898266]
[1770646031156,0.0735222,2018.6,2017.7,1.23898266]
[1770646031361,1.03178391,2018.5,2017.6,1.23905202]
[1770646031653,1.03178391,2018.5,2017.8,1.23897153]
[1770646031856,1.03178391,2018.5,2017.7,1.23900455]
[1770646032067,1.03178391,2018.5,2018.1,0.001]
[1770646032276,1.23860483,2018.4,2018.1,0.001]
[1770646033372,1.24051618,2018.6,2018.1,0.001]
[1770646033745,1.31403838,2018.6,2018.1,0.001]
[1770646034279,1.23860483,2018.4,2018.1,0.001]
[1770646035168,1.23859102,2018.5,2018.1,0.001]
[1770646035346,0.002,2018.6,2018.1,0.001]
[1770646035548,1.24049762,2018.6,2018.1,0.001]
[1770646036074,4.95540068,2019.0,2018.1,6.14987543]
[1770646036075,1.24024284,2019.0,2018.1,6.14987543]
[1770646036274,0.002,2019.0,2018.2,7.387603]
[1770646037864,0.002,2019.0,2018.2,1.23872757]
[1770646038063,0.002,2019.0,2018.1,4.95591031]
[1770646038064,0.002,2019.0,2018.1,1.23974274]
[1770646038580,1.24023675,2019.0,2018.1,0.001]
[1770646038981,1.03400657,2018.9,2018.1,0.001]
[1770646039178,1.24023675,2019.0,2018.1,0.001]
[1770646039179,0.0735222,2018.7,2018.1,0.001]
[1770646039366,1.24023675,2019.0,2018.1,0.001]
[1770646039367,1.03375836,2018.6,2018.1,0.001]
[1770646039556,0.0735222,2018.8,2018.1,0.001]
[1770646039757,1.03374402,2018.7,2018.1,0.001]
[1770646039970,1.03374402,2018.6,2018.1,0.001]
[1770646040178,0.0735222,2018.8,2018.1,0.001]
[1770646040481,1.03396529,2018.7,2018.1,0.001]
[1770646040677,1.23854347,2018.5,2018.1,0.001]
[1770646042680,4.95411839,2018.7,2018.1,0.001]
[1770646042869,1.0338657,2018.6,2018.1,0.001]
[1770646043063,4.95411839,2018.7,2018.1,0.001]
[1770646043383,1.03402316,2018.6,2018.1,0.001]
[1770646043683,4.95411839,2018.7,2018.1,0.001]
[1770646043895,1.03401415,2018.6,2018.1,0.001]
[1770646044073,4.95411839,2018.7,2018.1,0.001]
[1770646044274,1.03406743,2018.6,2018.1,0.001]
[1770646044494,4.95411839,2018.7,2018.1,0.001]
[1770646044695,1.03399547,2018.6,2018.1,0.001]
[1770646044988,4.95411839,2018.7,2018.1,0.001]
[1770646045294,1.03598792,2018.6,2018.1,0.001]
[1770646045498,0.002,2018.6,2018.1,0.001]
[1770646046269,0.002,2018.6,2017.3,5.91525994]
[1770646046270,1.10876513,2018.5,2017.3,5.91525994]
[1770646046469,1.03524293,2018.4,2017.4,1.23921582]
[1770646046791,1.03524293,2018.3,2017.4,1.23921582]
[1770646046969,1.23860483,2018.4,2017.4,1.23921582]
[1770646047169,1.03519548,2018.3,2017.3,7.15450459]
[1770646047385,1.23860483,2018.4,2017.3,7.15450459]
[1770646047569,1.03503441,2018.3,2017.3,7.15450459]
[1770646047893,1.23860483,2018.4,2017.3,7.15450459]
[1770646048195,0.0735222,2018.0,2017.0,0.001]
[1770646048392,1.03570263,2017.9,2017.1,1.23939605]
[1770646048694,1.72510418,2018.2,2017.0,1.24046134]
[1770646048890,0.0735222,2017.9,2017.0,1.24046134]
[1770646049096,1.23897313,2017.8,2017.0,0.001]
[1770646051006,1.23878895,2018.1,2017.0,5.91625994]
[1770646051171,1.10771113,2018.0,2017.0,5.91625994]
[1770646051371,1.03418893,2017.9,2017.0,0.001]
[1770646051770,1.03418893,2017.8,2017.0,0.001]
[1770646051970,0.0735222,2018.0,2017.0,0.001]
[1770646052172,1.03394946,2017.9,2017.0,0.001]
[1770646052474,1.03394946,2017.8,2017.0,0.001]
[1770646052698,1.1068772,2017.7,2017.0,0.001]
[1770646052896,2.96389313,2018.1,2017.0,5.91625994]
[1770646052897,1.23878895,2018.1,2017.0,5.91625994]
[1770646053198,1.03349205,2018.0,2017.0,7.15567652]
[1770646053403,4.95584814,2018.2,2017.0,7.15567652]
[1770646053601,1.03346569,2018.1,2017.0,7.15569645]
[1770646053809,1.10698789,2018.0,2017.0,7.15569645]
[1770646054012,0.0735222,2018.0,2017.0,7.15569645]
[1770646054390,4.95584814,2018.2,2017.0,7.15569645]
[1770646056497,0.0735222,2018.0,2017.0,7.15569645]
[1770646056709,0.0735222,2017.7,2017.0,0.001]
[1770646057287,0.0735222,2017.6,2017.0,0.001]
[1770646057903,1.23915737,2017.5,2017.0,0.001]
[1770646058194,1.23915737,2017.5,2016.6,5.91525994]
[1770646058401,1.23915737,2017.5,2016.4,1.23980917]
[1770646058402,1.23915737,2017.5,2016.5,1.23976635]
[1770646058590,1.23915737,2017.5,2017.2,0.001]
[1770646058794,1.23915737,2017.5,2016.5,7.15497892]
[1770646059021,1.23915737,2017.5,2016.6,1.23970895]
[1770646059722,1.31267957,2017.5,2016.7,5.91525994]
[1770646059908,1.31267957,2017.5,2016.3,3.462]
[1770646059909,0.0735222,2017.2,2016.3,3.462]
[1770646060229,1.23915737,2017.5,2016.4,5.91525994]
[1770646060413,1.03232808,2017.4,2016.4,5.91525994]
[1770646060629,0.0735222,2017.3,2016.3,3.462]
[1770646060787,1.31267957,2017.5,2016.4,5.91525994]
[1770646061221,1.23915737,2017.5,2016.4,5.91525994]
[1770646061418,1.31267957,2017.5,2016.4,5.91525994]
[1770646061890,1.31267957,2017.5,2016.5,1.23977188]
[1770646062093,0.0735222,2017.2,2016.3,1.23989012]
[1770646062308,0.0735222,2017.4,2016.4,1.23982607]
[1770646062518,1.23915737,2017.5,2016.4,7.15508601]
[1770646062723,0.0735222,2017.4,2016.4,7.15508601]
[1770646063041,11.12647407,2017.8,2016.6,5.91525994]
[1770646063042,1.23897313,2017.8,2016.6,5.91525994]
[1770646063207,0.0735222,2017.7,2016.6,5.91525994]
[1770646063396,1.23897313,2017.8,2016.6,5.91525994]
[1770646063597,0.0735222,2017.7,2016.5,5.91525994]
[1770646064133,0.002,2018.4,2016.9,5.91525994]
[1770646064316,0.002,2018.4,2017.3,5.91525994]
[1770646064496,0.002,2018.4,2017.5,5.91525994]
[1770646064830,0.002,2018.6,2017.6,8.92762194]
[1770646064996,0.002,2019.0,2018.1,5.91525994]
[1770646065196,1.24028878,2019.0,2018.3,5.91525994]
[1770646065504,0.0735222,2018.7,2017.9,5.8991412]
[1770646065711,0.0735222,2018.7,2016.5,4.95884161]
[1770646065712,0.0735222,2018.1,2016.8,5.8991412]
[1770646065902,1.23891173,2017.9,2017.1,1.2394031]
[1770646066603,1.23891173,2017.9,2017.2,2.648457]
[1770646066806,0.0735222,2017.8,2017.0,1.23946173]
[1770646066995,0.0735222,2017.8,2016.9,3.463]
[1770646067417,0.0735222,2017.8,2016.9,4.70251775]
[1770646067722,0.0735222,2017.8,2016.9,3.463]
[1770646067921,1.23921879,2017.4,2016.9,3.463]
[1770646068618,1.23891173,2017.9,2016.9,4.70251719]
[1770646069528,1.23891173,2017.9,2016.9,7.13865839]
[1770646069726,1.2386662,2018.3,2017.2,5.8991412]
[1770646069936,1.2386662,2018.3,2017.4,2.65539]
[1770646070102,4.95393868,2018.6,2017.5,1.23915737]
[1770646070303,0.0735222,2018.4,2017.5,1.23915737]
[1770646070520,0.0735222,2018.4,2017.4,1.23917283]
[1770646070727,4.95393868,2018.6,2017.4,1.23917283]
[1770646070936,1.03363156,2018.5,2017.4,1.2392139]
[1770646071095,4.95393868,2018.6,2017.5,22.1640642]
[1770646071303,0.002,2017.7,2017.4,1.2392139]
[1770646071603,0.0735222,2018.4,2017.3,1.23923459]
[1770646071802,0.0735222,2018.4,2017.3,1.23924505]
[1770646071803,0.002,2017.9,2017.3,1.23924505]
[1770646072132,0.002,2017.9,2017.3,1.23923156]
[1770646072425,0.002,2017.9,2017.2,3.463]
[1770646072900,0.0735222,2017.7,2017.2,3.463]
[1770646073095,0.002,2017.9,2017.2,3.463]
[1770646073544,0.0735222,2017.4,2016.9,0.001]
[1770646073742,0.0735222,2017.7,2016.9,0.001]
[1770646073929,0.002,2017.9,2017.1,1.23936494]
[1770646074133,0.002,2017.9,2016.9,7.1396672]
[1770646074330,0.002,2017.9,2016.9,10.6016672]
[1770646074531,0.002,2017.9,2017.0,24.7864692]
[1770646074738,0.002,2017.9,2017.0,5.8991412]
[1770646075958,0.002,2017.9,2016.9,4.702526]
[1770646076150,0.002,2017.9,2016.9,4.70252583]
[1770646077218,0.002,2017.9,2016.9,10.60166703]
[1770646077960,0.002,2017.9,2017.1,6.767268]
[1770646078249,0.002,2017.9,2017.2,1.23934166]
[1770646078968,0.002,2017.9,2017.2,7.13848286]
[1770646079172,0.002,2017.9,2016.9,8.42110355]
[1770646079173,0.0735222,2017.8,2016.9,3.463]
[1770646079330,0.002,2017.9,2017.0,1.23943331]
[1770646079638,0.002,2017.9,2017.0,1.23941882]
[1770646079839,0.002,2017.9,2016.9,4.70248538]
[1770646080038,0.002,2017.9,2017.0,1.23944999]
[1770646081050,0.002,2017.9,2017.0,7.13859119]
[1770646081229,0.002,2017.9,2017.0,1.23944999]
[1770646081545,0.002,2017.9,2017.1,5.8991412]
[1770646081927,0.002,2017.9,2017.0,1.23944999]
[1770646082329,0.002,2017.9,2016.9,4.70248177]
[1770646082726,0.002,2017.9,2017.1,1.2394031]
[1770646083461,0.002,2017.9,2017.1,7.1385443]
[1770646084767,0.002,2017.9,2017.2,0.001]
[1770646084973,0.002,2017.7,2017.2,0.001]
[1770646085466,0.002,2017.7,2017.2,5.9001412]
[1770646087062,0.002,2017.7,2017.3,7.13842142]
[1770646088235,0.002,2017.9,2017.5,5.8991412]
[1770646088441,1.24037004,2018.8,2017.8,5.8991412]
[1770646088765,5.91069668,2018.7,2017.6,3.462]
[1770646089171,1.23848211,2018.6,2017.7,1.23903454]
[1770646089375,0.0735222,2018.4,2017.6,3.462]
[1770646089674,1.31200431,2018.6,2017.6,4.7010886]
[1770646089975,0.0735222,2018.3,2017.6,3.462]
[1770646090145,1.03529303,2018.2,2017.6,3.462]
[1770646090475,0.0735222,2018.3,2017.6,3.462]
[1770646090776,0.0735222,2018.0,2017.2,1.24030209]
[1770646090952,0.0735222,2018.3,2017.4,1.23918257]
[1770646091156,1.23878895,2018.1,2017.2,4.95823957]
[1770646091970,1.03575481,2018.0,2017.2,0.001]
[1770646092287,1.23878895,2018.1,2017.2,0.001]
[1770646092490,1.03627681,2018.0,2017.2,0.001]
[1770646092788,1.23878895,2018.1,2017.2,0.001]
[1770646093188,4.95469674,2018.3,2017.2,0.001]
[1770646093381,1.03659616,2018.2,2017.2,5.9001412]
[1770646093581,1.03659616,2018.1,2017.2,5.9001412]
[1770646093773,0.0735222,2018.3,2017.2,5.9001412]
[1770646093977,1.03667467,2018.2,2017.2,5.9001412]
[1770646094291,0.0735222,2018.3,2017.2,0.001]
[1770646094292,5.91069668,2018.0,2017.2,0.001]
[1770646094593,0.0735222,2017.7,2017.2,0.001]
[1770646094762,0.0735222,2017.9,2017.2,0.001]
[1770646095292,1.03781278,2017.8,2017.2,0.001]
[1770646095460,1.23903454,2017.7,2017.2,0.001]
[1770646096983,1.23903454,2017.7,2016.9,4.65448972]
[1770646097567,4.95613817,2017.8,2016.9,4.65448972]
[1770646097888,1.03779608,2017.7,2016.9,3.415]
[1770646098190,1.11131828,2017.6,2017.3,0.001]
[1770646098397,1.03781473,2017.5,2016.9,3.415]
[1770646098698,6.02806516,2017.7,2017.0,0.001]
[1770646098908,1.11132015,2017.6,2017.0,0.001]
[1770646099106,1.03779795,2017.5,2017.0,0.001]
[1770646099308,0.0735222,2017.6,2017.0,0.001]
[1770646099491,1.03753659,2017.5,2017.0,0.001]
[1770646099699,1.23915737,2017.5,2017.0,0.001]
[1770646101482,0.002,2017.7,2017.0,5.7930951]
[1770646101805,0.002,2017.7,2017.1,1.2394031]
[1770646102778,0.002,2017.7,2017.1,7.0314982]
[1770646103406,0.002,2017.7,2017.1,1.2394031]
[1770646103611,0.002,2017.7,2017.1,10.4944982]
[1770646103809,0.002,2017.7,2017.2,5.7920951]
[1770646104322,0.002,2017.9,2017.4,5.7920951]
[1770646105041,0.002,2017.9,2017.1,4.7024031]
[1770646105512,0.0735222,2017.8,2017.1,3.463]
[1770646105822,1.24091173,2017.9,2017.1,3.463]
[1770646105994,1.0378075,2017.8,2017.1,4.70239928]
[1770646106191,1.24091173,2017.9,2017.1,3.463]
[1770646106587,1.24091173,2017.9,2017.1,4.7023953]
[1770646106788,1.24091173,2017.9,2017.1,3.463]
[1770646107528,1.03775126,2017.8,2017.1,3.463]
[1770646107817,7.26697689,2017.9,2017.1,3.463]
[1770646107990,1.03774661,2017.8,2017.1,3.463]
[1770646108191,1.24091173,2017.9,2017.1,3.463]
[1770646108391,1.03770228,2017.8,2017.1,3.463]
[1770646108616,1.24091173,2017.9,2017.1,3.463]
[1770646108797,1.03765239,2017.8,2017.1,3.463]
[1770646108993,1.24091173,2017.9,2017.1,4.70239144]
[1770646109194,0.002,2017.9,2017.2,12.628943]
[1770646109398,0.002,2017.9,2017.1,4.70239144]
[1770646109601,0.002,2017.9,2017.1,4.70239993]
[1770646110011,0.0735222,2017.8,2017.1,3.463]
[1770646110228,1.03764455,2017.7,2017.1,3.463]
[1770646110415,1.03761428,2017.6,2017.1,3.463]
[1770646110628,6.02606516,2017.7,2017.1,3.463]
[1770646110810,1.03760503,2017.6,2017.1,3.463]
[1770646111132,0.0735222,2017.6,2017.0,0.001]
[1770646111516,0.0755222,2017.6,2017.0,0.001]
[1770646111728,0.002,2017.6,2017.0,0.001]
[1770646111927,0.0755222,2017.6,2017.0,0.001]
[1770646112340,1.24109595,2017.6,2017.0,0.001]
[1770646114914,1.24109595,2017.6,2016.0,0.1024]
[1770646114915,6.09958736,2017.4,2016.1,0.003]
[1770646115146,1.03696092,2017.3,2016.2,1.23992724]
[1770646115307,1.03696092,2017.2,2016.1,5.7950951]
[1770646115513,6.02606516,2017.3,2016.3,1.23987318]
[1770646115517,1.03596394,2017.1,2016.3,1.23987318]
[1770646115735,9.48906516,2017.3,2016.3,1.23987318]
[1770646115924,1.03596804,2017.2,2016.3,1.23987318]
[1770646116133,1.10949024,2017.1,2016.3,1.23987318]
[1770646116315,1.10949024,2017.1,2016.2,1.23991366]
[1770646116316,0.0735222,2017.1,2016.2,1.23991366]
[1770646116718,1.23946455,2017.0,2016.1,1.24296715]
[1770646117519,1.23946455,2017.0,2016.1,0.003]
[1770646117720,1.03466573,2016.9,2016.1,7.03510572]
[1770646118042,1.23946455,2017.0,2016.1,7.03510572]
[1770646118412,1.31298675,2017.0,2016.1,1.24301062]
[1770646118611,1.23946455,2017.0,2016.1,1.24301062]
[1770646118811,0.0735222,2017.0,2016.1,0.003]
[1770646119437,0.0735222,2016.4,2015.4,5.7920951]
[1770646119643,6.09958736,2016.4,2015.1,5.7920951]
[1770646119829,6.09958736,2016.4,2014.8,8.42625357]
[1770646119830,0.0735222,2016.1,2015.0,4.96276912]
[1770646120032,6.09958736,2016.1,2015.1,1.24060877]
[1770646120236,6.09958736,2016.0,2015.1,1.24060675]
[1770646120424,6.09958736,2016.0,2015.1,1.24059748]
[1770646120949,1.24014088,2015.9,2014.9,7.03285146]
[1770646121117,1.23995635,2016.2,2015.1,5.7920951]
[1770646121448,1.23995635,2016.2,2014.9,1.24075636]
[1770646121449,0.0735222,2016.0,2014.9,7.03285146]
[1770646121614,0.0735222,2015.7,2014.8,1.24080847]
[1770646121819,0.0735222,2015.7,2014.8,1.24081611]
[1770646122336,0.0735222,2015.7,2014.8,1.24079617]
[1770646122529,0.0235222,2015.7,2014.8,1.24079617]
[1770646123053,1.24032546,2015.6,2014.6,7.0329864]
[1770646123239,1.24032546,2015.6,2014.6,1.24093668]
[1770646123444,1.24021414,2015.8,2014.6,7.03303178]
[1770646123614,1.24021414,2015.8,2014.9,6.993034]
[1770646123824,1.24021414,2015.8,2014.8,5.7920951]
[1770646124054,1.31373634,2015.8,2014.6,1.24093668]
[1770646124237,1.24021414,2015.8,2015.3,0.001]
[1770646124746,4.95861717,2016.7,2015.4,5.7920951]
[1770646124939,5.03213937,2016.7,2015.5,1.240387]
[1770646125251,6.02606516,2016.4,2015.4,1.240436]
[1770646125449,4.95861717,2016.7,2015.4,7.30646925]
[1770646125618,1.23964893,2016.7,2015.7,9.87392425]
[1770646125816,1.23964893,2016.7,2015.8,2.62859]
[1770646126059,1.23964893,2016.7,2015.7,6.06603325]
[1770646126235,0.002,2016.8,2015.5,5.815399]
[1770646126434,0.002,2016.8,2015.4,7.30646925]
[1770646126435,0.002,2016.8,2015.8,6.06603325]
[1770646126640,0.002,2016.8,2016.0,18.22141925]
[1770646126834,0.002,2016.8,2016.2,1.23995635]
[1770646127049,0.002,2016.8,2016.0,1.24005324]
[1770646127221,0.002,2016.8,2015.8,4.96070229]
[1770646127422,0.002,2016.8,2016.0,1.24004863]
[1770646127617,0.002,2016.8,2016.0,1.24007131]
[1770646127824,0.002,2016.8,2016.0,1.24002403]
[1770646128453,0.002,2016.8,2015.8,4.96075267]
[1770646128654,0.002,2016.8,2015.3,0.001]
[1770646128655,0.0735222,2016.6,2015.3,0.001]
[1770646128954,1.23977188,2016.5,2015.3,0.001]
[1770646129348,0.0735222,2016.3,2015.3,0.001]
[1770646130864,1.23977188,2016.5,2015.5,1.240387]
[1770646131060,1.31329408,2016.5,2015.5,1.240387]
[1770646131455,1.31329408,2016.5,2015.3,0.001]
[1770646131765,1.31329408,2016.5,2015.3,1.24148288]
[1770646131766,0.0735222,2016.2,2015.3,1.24148288]
[1770646131930,0.0735222,2016.2,2015.4,1.24044725]
[1770646132126,0.0735222,2016.2,2015.3,1.24146486]
[1770646132338,0.0735222,2016.2,2015.3,0.001]
[1770646132555,6.20143197,2016.3,2015.4,1.2404341]
[1770646132731,4.95908752,2016.6,2015.4,1.2404341]
[1770646132732,7.44112933,2016.7,2015.5,19.75765725]
[1770646132926,0.0735222,2016.6,2015.6,1.24032546]
[1770646133130,7.51465153,2016.7,2015.6,1.24032546]
[1770646133326,0.0735222,2016.4,2015.6,1.24032546]
[1770646133545,7.51465153,2016.7,2015.5,1.2403632]
[1770646133747,1.23969736,2016.7,2015.6,18.630088]
[1770646134062,1.23969736,2016.7,2015.6,17.508146]
[1770646134855,1.23969736,2016.7,2015.6,23.57417925]
[1770646135064,0.002,2016.8,2015.8,1.2402024]
[1770646135660,0.002,2016.8,2016.0,15.42194325]
[1770646135956,0.002,2016.8,2016.1,13.49939425]
[1770646136257,0.002,2016.8,2016.2,18.145766]
[1770646136468,0.002,2017.8,2016.5,6.06603325]
[1770646136662,1.23906186,2017.7,2016.8,16.175643]
[1770646136831,1.24101968,2017.8,2016.8,15.049441]
[1770646137335,0.002,2017.8,2016.9,1.239526]
[1770646137530,0.0755222,2017.8,2016.8,1.23957716]
[1770646137845,0.002,2017.4,2016.6,1.23968293]
[1770646138049,0.002,2017.4,2016.8,1.2395697]
[1770646138432,0.002,2017.4,2016.4,3.213177]
[1770646138633,0.002,2017.4,2016.7,1.23963854]
[1770646138949,0.002,2017.4,2016.8,1.23957589]
[1770646139460,0.002,2017.4,2016.5,6.916726]
[1770646139960,0.002,2017.4,2016.5,6.06603325]
[1770646140463,0.002,2017.4,2016.5,3.241552]
[1770646140631,0.002,2017.4,2016.4,1.23983336]
[1770646140835,0.002,2017.4,2016.5,2.284]
[1770646141137,0.002,2017.4,2016.4,1.23983336]
[1770646141359,0.002,2017.4,2016.5,4.992877]
[1770646141551,0.002,2017.4,2016.8,6.06603325]
[1770646141861,0.002,2017.8,2017.3,21.823916]
[1770646142233,0.002,2017.8,2016.8,6.06603325]
[1770646142462,0.002,2017.8,2016.9,4.121986]
[1770646143535,0.002,2017.8,2017.1,6.102971]
[1770646143941,0.002,2017.8,2017.2,5.027033]
[1770646144134,0.002,2017.8,2017.1,3.706299]
[1770646144549,0.002,2017.8,2017.2,10.931722]
[1770646144860,1.23857014,2018.5,2017.5,12.310423]
[1770646145064,1.23857014,2018.5,2017.3,19.91416625]
[1770646145238,1.23851052,2018.6,2017.5,22.226321]
[1770646145438,1.23851052,2018.6,2017.5,19.304738]
[1770646145642,0.0735222,2018.5,2017.5,1.23912169]
[1770646146743,11.15720823,2018.7,2017.5,1.23912169]
[1770646146945,0.0735222,2018.5,2017.5,1.23912169]
[1770646148167,1.23853456,2018.6,2017.5,6.06603325]
[1770646148361,1.23853456,2018.6,2017.6,15.043135]
[1770646148544,1.23853456,2018.6,2017.6,11.775943]
[1770646148747,0.002,2018.7,2017.7,10.797531]
[1770646148947,0.002,2018.7,2018.0,17.81591525]
[1770646149250,0.002,2018.7,2018.2,14.375787]
[1770646149782,0.002,2018.7,2018.3,23.139426]
[1770646149983,0.002,2019.0,2018.3,19.635482]
[1770646150189,1.24024364,2019.0,2018.0,8.336183]
[1770646150373,1.24024364,2019.0,2018.0,4.288392]
[1770646150575,1.24024364,2019.0,2018.0,10.35442525]
[1770646150762,1.24024364,2019.0,2018.1,4.86323]
[1770646151092,1.24024364,2019.0,2018.0,4.227675]
[1770646151273,1.24024364,2019.0,2017.9,1.18891173]
[1770646151487,0.002,2018.3,2018.0,4.741669]
[1770646151806,0.002,2019.0,2018.0,10.80770225]
[1770646152000,0.002,2018.5,2018.1,7.127982]
[1770646152309,0.002,2018.5,2017.8,8.41864695]
[1770646152310,0.002,2018.5,2017.8,3.463]
[1770646152513,0.002,2018.5,2017.9,1.23890633]
[1770646152814,0.002,2018.5,2017.7,0.001]